Workbook

Sheet Summary
A1: Races | B1: Wins | C1: SR | D1: Return | E1: POT
A2: 176357 | B2: 55853 | C2: =B2/A2 -> 0.3167041853 | D2: 152747.82 | E2: =(D2/A2)-1 -> -0.133871522

Sheet Distance
A1: Distance | B1: Races | C1: Wins | D1: Return | E1: SR | F1: Return
A2: 800 | B2: 570 | C2: 192 | D2: 487.5 | E2: =C2/B2 -> 0.3368421053 | F2: =D2-B2 -> -82.5
A3: 900 | B3: 2362 | C3: 858 | D3: 2092.5 | E3: =C3/B3 -> 0.3632514818 | F3: =D3-B3 -> -269.5
A4: 1000 | B4: 19018 | C4: 6488 | D4: 16677.7 | E4: =C4/B4 -> 0.341150489 | F4: =D4-B4 -> -2340.3
A5: 1010 | B5: 501 | C5: 166 | D5: 439.3 | E5: =C5/B5 -> 0.3313373253 | F5: =D5-B5 -> -61.7
A6: 1050 | B6: 1344 | C6: 446 | D6: 1158 | E6: =C6/B6 -> 0.3318452381 | F6: =D6-B6 -> -186
A7: 1080 | B7: 325 | C7: 98 | D7: 252.1 | E7: =C7/B7 -> 0.3015384615 | F7: =D7-B7 -> -72.9
A8: 1100 | B8: 13670 | C8: 4536 | D8: 11855.2 | E8: =C8/B8 -> 0.3318215069 | F8: =D8-B8 -> -1814.8
A9: 1110 | B9: 697 | C9: 224 | D9: 580.5 | E9: =C9/B9 -> 0.3213773314 | F9: =D9-B9 -> -116.5
A10: 1150 | B10: 520 | C10: 157 | D10: 438.8 | E10: =C10/B10 -> 0.3019230769 | F10: =D10-B10 -> -81.2
A11: 1175 | B11: 507 | C11: 163 | D11: 432.9 | E11: =C11/B11 -> 0.3214990138 | F11: =D11-B11 -> -74.1
A12: 1200 | B12: 32806 | C12: 10598 | D12: 28849.2 | E12: =C12/B12 -> 0.3230506615 | F12: =D12-B12 -> -3956.8
A13: 1206 | B13: 341 | C13: 91 | D13: 265.1 | E13: =C13/B13 -> 0.2668621701 | F13: =D13-B13 -> -75.9
A14: 1207 | B14: 229 | C14: 72 | D14: 180.2 | E14: =C14/B14 -> 0.3144104803 | F14: =D14-B14 -> -48.8
A15: 1212 | B15: 269 | C15: 95 | D15: 249.3 | E15: =C15/B15 -> 0.3531598513 | F15: =D15-B15 -> -19.7
A16: 1250 | B16: 2289 | C16: 701 | D16: 1939.7 | E16: =C16/B16 -> 0.3062472696 | F16: =D16-B16 -> -349.3
A17: 1280 | B17: 575 | C17: 187 | D17: 512.2 | E17: =C17/B17 -> 0.3252173913 | F17: =D17-B17 -> -62.8
A18: 1300 | B18: 9895 | C18: 3072 | D18: 8550.4 | E18: =C18/B18 -> 0.3104598282 | F18: =D18-B18 -> -1344.6
A19: 1310 | B19: 369 | C19: 111 | D19: 303.9 | E19: =C19/B19 -> 0.3008130081 | F19: =D19-B19 -> -65.1
A20: 1350 | B20: 3731 | C20: 1170 | D20: 3252.6 | E20: =C20/B20 -> 0.3135888502 | F20: =D20-B20 -> -478.4
A21: 1400 | B21: 22333 | C21: 6919 | D21: 19731.9 | E21: =C21/B21 -> 0.3098105942 | F21: =D21-B21 -> -2601.1
A22: 1406 | B22: 224 | C22: 61 | D22: 189.9 | E22: =C22/B22 -> 0.2723214286 | F22: =D22-B22 -> -34.1
A23: 1410 | B23: 315 | C23: 98 | D23: 289 | E23: =C23/B23 -> 0.3111111111 | F23: =D23-B23 -> -26
A24: 1412 | B24: 239 | C24: 76 | D24: 205.5 | E24: =C24/B24 -> 0.3179916318 | F24: =D24-B24 -> -33.5
A25: 1420 | B25: 210 | C25: 54 | D25: 149 | E25: =C25/B25 -> 0.2571428571 | F25: =D25-B25 -> -61
A26: 1430 | B26: 345 | C26: 123 | D26: 344.7 | E26: =C26/B26 -> 0.3565217391 | F26: =D26-B26 -> -0.3
A27: 1450 | B27: 805 | C27: 232 | D27: 641.6 | E27: =C27/B27 -> 0.2881987578 | F27: =D27-B27 -> -163.4
A28: 1460 | B28: 275 | C28: 82 | D28: 228.9 | E28: =C28/B28 -> 0.2981818182 | F28: =D28-B28 -> -46.1
A29: 1500 | B29: 4146 | C29: 1301 | D29: 3672.2 | E29: =C29/B29 -> 0.3137964303 | F29: =D29-B29 -> -473.8
A30: 1550 | B30: 1327 | C30: 400 | D30: 1114.6 | E30: =C30/B30 -> 0.3014318011 | F30: =D30-B30 -> -212.4
A31: 1600 | B31: 16976 | C31: 5096 | D31: 14231 | E31: =C31/B31 -> 0.3001885014 | F31: =D31-B31 -> -2745
A32: 1615 | B32: 423 | C32: 124 | D32: 349.3 | E32: =C32/B32 -> 0.293144208 | F32: =D32-B32 -> -73.7
A33: 1620 | B33: 239 | C33: 74 | D33: 219.5 | E33: =C33/B33 -> 0.309623431 | F33: =D33-B33 -> -19.5
A34: 1625 | B34: 238 | C34: 77 | D34: 201 | E34: =C34/B34 -> 0.3235294118 | F34: =D34-B34 -> -37
A35: 1630 | B35: 432 | C35: 129 | D35: 374.2 | E35: =C35/B35 -> 0.2986111111 | F35: =D35-B35 -> -57.8
A36: 1650 | B36: 640 | C36: 190 | D36: 548.8 | E36: =C36/B36 -> 0.296875 | F36: =D36-B36 -> -91.2
A37: 1666 | B37: 273 | C37: 85 | D37: 231.1 | E37: =C37/B37 -> 0.3113553114 | F37: =D37-B37 -> -41.9
A38: 1700 | B38: 1450 | C38: 437 | D38: 1229.9 | E38: =C38/B38 -> 0.3013793103 | F38: =D38-B38 -> -220.1
A39: 1750 | B39: 630 | C39: 191 | D39: 535.4 | E39: =C39/B39 -> 0.3031746032 | F39: =D39-B39 -> -94.6
A40: 1800 | B40: 3986 | C40: 1198 | D40: 3437.6 | E40: =C40/B40 -> 0.3005519318 | F40: =D40-B40 -> -548.4
A41: 1850 | B41: 717 | C41: 215 | D41: 604.5 | E41: =C41/B41 -> 0.29986053 | F41: =D41-B41 -> -112.5
A42: 1900 | B42: 1366 | C42: 414 | D42: 1137.7 | E42: =C42/B42 -> 0.3030746706 | F42: =D42-B42 -> -228.3
A43: 1950 | B43: 261 | C43: 72 | D43: 210.5 | E43: =C43/B43 -> 0.275862069 | F43: =D43-B43 -> -50.5
A44: 2000 | B44: 3886 | C44: 1186 | D44: 3435.8 | E44: =C44/B44 -> 0.3051981472 | F44: =D44-B44 -> -450.2
A45: 2025 | B45: 312 | C45: 81 | D45: 247.2 | E45: =C45/B45 -> 0.2596153846 | F45: =D45-B45 -> -64.8
A46: 2040 | B46: 494 | C46: 150 | D46: 441 | E46: =C46/B46 -> 0.3036437247 | F46: =D46-B46 -> -53
A47: 2050 | B47: 537 | C47: 158 | D47: 447.3 | E47: =C47/B47 -> 0.2942271881 | F47: =D47-B47 -> -89.7
A48: 2100 | B48: 1905 | C48: 603 | D48: 1684.4 | E48: =C48/B48 -> 0.3165354331 | F48: =D48-B48 -> -220.6
A49: 2150 | B49: 358 | C49: 96 | D49: 267.2 | E49: =C49/B49 -> 0.2681564246 | F49: =D49-B49 -> -90.8
A50: 2200 | B50: 2220 | C50: 647 | D50: 1756.8 | E50: =C50/B50 -> 0.2914414414 | F50: =D50-B50 -> -463.2
A51: 2400 | B51: 1343 | C51: 429 | D51: 1279.2 | E51: =C51/B51 -> 0.3194341028 | F51: =D51-B51 -> -63.8
A52: 2500 | B52: 340 | C52: 110 | D52: 326.2 | E52: =C52/B52 -> 0.3235294118 | F52: =D52-B52 -> -13.8
A53: 3000 | B53: 374 | C53: 113 | D53: 315.9 | E53: =C53/B53 -> 0.3021390374 | F53: =D53-B53 -> -58.1
A54: 3200 | B54: 392 | C54: 140 | D54: 387.4 | E54: =C54/B54 -> 0.3571428571 | F54: =D54-B54 -> -4.6

Sheet Field Size
A1: Field S | B1: Bets | C1: Wins | D1: $Return | E1: %SR | F1: $Profit | G1: %POT
A2: 2 | B2: 5 | C2: 4 | D2: 5.7 | E2: =C2/B2 -> 0.8 | F2: 0.7 | G2: 14
A3: 3 | B3: 107 | C3: 66 | D3: 103.8 | E3: =C3/B3 -> 0.6168224299 | F3: -3.2 | G3: -3
A4: 4 | B4: 775 | C4: 369 | D4: 670.1 | E4: 0.4761290323 | F4: -104.9 | G4: -14
A5: 5 | B5: 3082 | C5: 1335 | D5: 2659.3 | E5: 0.4331602855 | F5: -422.7 | G5: -14
A6: 6 | B6: 7411 | C6: 2935 | D6: 6286.7 | E6: 0.396032924 | F6: -1124.3 | G6: -15
A7: 7 | B7: 12703 | C7: 4610 | D7: 10697.2 | E7: 0.3629064001 | F7: -2005.8 | G7: -16
A8: 8 | B8: 17644 | C8: 6206 | D8: 15467.9 | E8: 0.3517343006 | F8: -2176.1 | G8: -12
A9: 9 | B9: 21595 | C9: 7140 | D9: 18697.2 | E9: 0.3306320908 | F9: -2897.8 | G9: -13
A10: 10 | B10: 24913 | C10: 7974 | D10: 21862.8 | E10: 0.320073857 | F10: -3050.2 | G10: -12
A11: 11 | B11: 23612 | C11: 7267 | D11: 20873.5 | E11: 0.307767237 | F11: -2738.5 | G11: -12
A12: 12 | B12: 25317 | C12: 7273 | D12: 21501.7 | E12: 0.2872773235 | F12: -3815.3 | G12: -15
A13: 13 | B13: 15005 | C13: 4312 | D13: 13392.5 | E13: 0.2873708764 | F13: -1612.5 | G13: -11
A14: 14 | B14: 15194 | C14: 4139 | D14: 12985.7 | E14: 0.2724101619 | F14: -2208.3 | G14: -15
A15: 15 | B15: 4154 | C15: 1088 | D15: 3556.5 | E15: 0.2619162253 | F15: -597.5 | G15: -14
A16: 16 | B16: 4051 | C16: 963 | D16: 3314.8 | E16: 0.2377190817 | F16: -736.2 | G16: -18
A17: 17 | B17: 338 | C17: 80 | D17: 291.7 | E17: 0.2366863905 | F17: -46.3 | G17: -14
A18: 18 | B18: 282 | C18: 59 | D18: 233.9 | E18: 0.2092198582 | F18: -48.1 | G18: -17
A19: 19 | B19: 64 | C19: 11 | D19: 49.1 | E19: 0.171875 | F19: -14.9 | G19: -23
A20: 20 | B20: 90 | C20: 19 | D20: 86.8 | E20: 0.2111111111 | F20: -3.2 | G20: -4
A21: 21 | B21: 2 | C21: 0 | D21: 0 | E21: 0 | F21: -2 | G21: -100
A22: 22 | B22: 4 | C22: 1 | D22: 3.6 | E22: 0.25 | F22: -0.4 | G22: -10
A23: 23 | B23: 6 | C23: 0 | D23: 0 | E23: 0 | F23: -6 | G23: -100
A24: 24 | B24: 3 | C24: 2 | D24: 7.3 | E24: 0.6666666667

Sheet Condition
B1: Bets | C1: Wins | D1: $Return | E1: %SR | F1: $Profit | G1: %POT
A2: D | B2: 34900 | C2: 10964 | D2: 30121.2 | E2: =C2/B2 -> 0.3141547278 | F2: -4778.8 | G2: -14
A3: G | B3: 111884 | C3: 36116 | D3: 97624.3 | E3: =C3/B3 -> 0.3227986128 | F3: -14259.7 | G3: -13
A4: H | B4: 13375 | C4: 3921 | D4: 11236.8 | E4: 0.2931588785 | F4: -2138.2 | G4: -16
A5: S | B5: 16198 | C5: 4852 | D5: 13765.5 | E5: 0.2995431535 | F5: -2432.5 | G5: -15

Sheet Class
B1: Bets | C1: Wins | D1: $Return | E1: %SR | F1: $Profit
A2: Benchmark 50 | B2: 407 | C2: 107 | D2: 385.7 | E2: =C2/B2 -> 0.2628992629 | F2: -21.3
A3: Benchmark 55 | B3: 618 | C3: 159 | D3: 530 | E3: =C3/B3 -> 0.2572815534 | F3: -88
A4: Benchmark 60 | B4: 770 | C4: 217 | D4: 656.2 | E4: =C4/B4 -> 0.2818181818 | F4: -113.8
A5: Benchmark 65 | B5: 671 | C5: 192 | D5: 568.3 | E5: =C5/B5 -> 0.2861400894 | F5: -102.7
A6: Benchmark 70 | B6: 746 | C6: 208 | D6: 605.4 | E6: =C6/B6 -> 0.2788203753 | F6: -140.6
A7: Benchmark 72 | B7: 202 | C7: 59 | D7: 146.9 | E7: =C7/B7 -> 0.2920792079 | F7: -55.1
A8: Benchmark 75 | B8: 547 | C8: 172 | D8: 481.3 | E8: =C8/B8 -> 0.3144424132 | F8: -65.7
A9: Benchmark 80 | B9: 353 | C9: 109 | D9: 320.6 | E9: =C9/B9 -> 0.3087818697 | F9: -32.4
A10: Benchmark 85 | B10: 227 | C10: 76 | D10: 209.9 | E10: =C10/B10 -> 0.3348017621 | F10: -17.1
A11: Class 1 | B11: 18783 | C11: 5524 | D11: 15578.9 | E11: =C11/B11 -> 0.2940957249 | F11: -3204.1
A12: Class 2 | B12: 11940 | C12: 3610 | D12: 10211.3 | E12: =C12/B12 -> 0.3023450586 | F12: -1728.7
A13: Class 3 | B13: 10207 | C13: 3171 | D13: 8656.9 | E13: =C13/B13 -> 0.3106691486 | F13: -1550.1
A14: Class 4 | B14: 6310 | C14: 1980 | D14: 5350.6 | E14: =C14/B14 -> 0.3137876387 | F14: -959.4
A15: Class 5 | B15: 2810 | C15: 913 | D15: 2412.9 | E15: =C15/B15 -> 0.324911032 | F15: -397.1
A16: Class 6 | B16: 8342 | C16: 2727 | D16: 7464.6 | E16: =C16/B16 -> 0.326900024 | F16: -877.4
A17: Flying | B17: 509 | C17: 164 | D17: 438.8 | E17: =C17/B17 -> 0.3222003929 | F17: -70.2
A18: Group I | B18: 874 | C18: 291 | D18: 795.4 | E18: =C18/B18 -> 0.3329519451 | F18: -78.6
A19: Group II | B19: 1097 | C19: 358 | D19: 912.1 | E19: =C19/B19 -> 0.3263445761 | F19: -184.9
A20: Group III | B20: 1455 | C20: 432 | D20: 1210.7 | E20: =C20/B20 -> 0.2969072165 | F20: -244.3
A21: Hurdle | B21: 588 | C21: 217 | D21: 526.5 | E21: =C21/B21 -> 0.369047619 | F21: -61.5
A22: Intermediate | B22: 222 | C22: 69 | D22: 204.4 | E22: =C22/B22 -> 0.3108108108 | F22: -17.6
A23: Listed Race | B23: 3531 | C23: 1007 | D23: 2936.5 | E23: =C23/B23 -> 0.2851883319 | F23: -594.5
A24: Maiden | B24: 49343 | C24: 16831 | D24: 43605 | E24: =C24/B24 -> 0.3411020813 | F24: -5738
A25: Open | B25: 21221 | C25: 6831 | D25: 18368.1 | E25: =C25/B25 -> 0.3218981198 | F25: -2852.9
A26: Quality | B26: 650 | C26: 171 | D26: 500.5 | E26: =C26/B26 -> 0.2630769231 | F26: -149.5
A27: Rest 0 Metro Win | B27: 2160 | C27: 670 | D27: 1926 | E27: =C27/B27 -> 0.3101851852 | F27: -234
A28: Rest 1 Metro Win | B28: 2816 | C28: 887 | D28: 2467.8 | E28: =C28/B28 -> 0.3149857955 | F28: -348.2
A29: Rest 2 Metro Win | B29: 695 | C29: 240 | D29: 689.5 | E29: =C29/B29 -> 0.345323741 | F29: -5.5
A30: Rest 3 Metro Win | B30: 1149 | C30: 346 | D30: 947.9 | E30: =C30/B30 -> 0.3011314186 | F30: -201.1
A31: Restricted | B31: 1313 | C31: 374 | D31: 1083.9 | E31: =C31/B31 -> 0.284843869 | F31: -229.1
A32: Restricted 58 | B32: 805 | C32: 221 | D32: 703.5 | E32: =C32/B32 -> 0.2745341615 | F32: -101.5
A33: Restricted 62 | B33: 2929 | C33: 755 | D33: 2457.3 | E33: =C33/B33 -> 0.257767156 | F33: -471.7
A34: Restricted 64 | B34: 1024 | C34: 306 | D34: 901.9 | E34: =C34/B34 -> 0.298828125 | F34: -122.1
A35: Restricted 65 | B35: 388 | C35: 108 | D35: 332.3 | E35: =C35/B35 -> 0.2783505155 | F35: -55.7
A36: Restricted 67 | B36: 456 | C36: 136 | D36: 385.2 | E36: =C36/B36 -> 0.298245614 | F36: -70.8
A37: Restricted 68 | B37: 3501 | C37: 1013 | D37: 3020.7 | E37: =C37/B37 -> 0.2893459012 | F37: -480.3
A38: Restricted 71 | B38: 408 | C38: 120 | D38: 357.1 | E38: =C38/B38 -> 0.2941176471 | F38: -50.9
A39: Restricted 72 | B39: 1902 | C39: 606 | D39: 1713.9 | E39: =C39/B39 -> 0.3186119874 | F39: -188.1
A40: Restricted 73 | B40: 246 | C40: 77 | D40: 211.5 | E40: =C40/B40 -> 0.3130081301 | F40: -34.5
A41: Restricted 74 | B41: 350 | C41: 103 | D41: 318.1 | E41: =C41/B41 -> 0.2942857143 | F41: -31.9
A42: Restricted 75 | B42: 866 | C42: 245 | D42: 726.8 | E42: =C42/B42 -> 0.2829099307 | F42: -139.2
A43: Restricted 78 | B43: 718 | C43: 229 | D43: 653 | E43: =C43/B43 -> 0.3189415042 | F43: -65
A44: Restricted 79 | B44: 252 | C44: 70 | D44: 182.1 | E44: =C44/B44 -> 0.2777777778 | F44: -69.9
A45: Restricted 81 | B45: 327 | C45: 107 | D45: 314.9 | E45: =C45/B45 -> 0.3272171254 | F45: -12.1
A46: Restricted 82 | B46: 657 | C46: 218 | D46: 638.3 | E46: =C46/B46 -> 0.3318112633 | F46: -18.7
A47: Restricted 86 | B47: 596 | C47: 187 | D47: 519.1 | E47: =C47/B47 -> 0.3137583893 | F47: -76.9
A48: Restricted 89 | B48: 524 | C48: 171 | D48: 506 | E48: =C48/B48 -> 0.3263358779 | F48: -18
A49: Rst 0 Met Win-LY | B49: 268 | C49: 79 | D49: 237.7 | E49: =C49/B49 -> 0.2947761194 | F49: -30.3
A50: Rst 1 Met Win-LY | B50: 1561 | C50: 468 | D50: 1426.2 | E50: =C50/B50 -> 0.2998078155 | F50: -134.8
A51: Rst 2 Met Win-LY | B51: 458 | C51: 118 | D51: 341.2 | E51: =C51/B51 -> 0.2576419214 | F51: -116.8
A52: S/C 0 win | B52: 573 | C52: 176 | D52: 462.9 | E52: =C52/B52 -> 0.3071553229 | F52: -110.1
A53: S/C 0 win-ly | B53: 341 | C53: 116 | D53: 349.6 | E53: =C53/B53 -> 0.3401759531 | F53: 8.6
A54: S/C 1 win-ly | B54: 490 | C54: 143 | D54: 409.6 | E54: =C54/B54 -> 0.2918367347 | F54: -80.4
A55: Special Conditio | B55: 408 | C55: 117 | D55: 319.1 | E55: =C55/B55 -> 0.2867647059 | F55: -88.9
A56: Transition | B56: 420 | C56: 134 | D56: 366.3 | E56: =C56/B56 -> 0.319047619 | F56: -53.7
A57: Welter | B57: 812 | C57: 269 | D57: 752.8 | E57: =C57/B57 -> 0.3312807882 | F57: -59.2
